bitfinex-derivatives/quotes_ETHF0:USTF0_20260204
["timestamp","ask_amount","ask_price","bid_price","bid_amount"]
[1770219091999,7.52433778,2174.8,2173.3,7.42564922]
[1770219092201,7.52433778,2175.6,2174.4,7.19522922]
[1770219092396,0.00364313,2175.6,2174.4,7.4295278]
[1770219092591,0.00364313,2175.6,2174.6,7.42549922]
[1770219092793,7.98333778,2176.4,2174.6,7.42549922]
[1770219092993,7.98333778,2176.4,2174.8,7.19522922]
[1770219093198,0.459,2176.4,2175.0,7.19522922]
[1770219093700,1.0579,2177.5,2174.6,1.05929]
[1770219093701,7.52433778,2177.6,2176.1,7.19522922]
[1770219093999,11.92762203,2177.6,2176.1,0.00357914]
[1770219094198,0.00420676,2177.6,2176.1,7.42892836]
[1770219094391,0.459,2178.2,2176.7,7.42527922]
[1770219094392,7.52433778,2178.1,2176.7,7.42527922]
[1770219094596,0.459,2178.2,2177.1,7.19522922]
[1770219094797,7.52433778,2179.0,2177.6,7.19522922]
[1770219094991,7.52433778,2178.7,2177.2,7.19522922]
[1770219095197,7.52433778,2178.2,2176.3,7.19522922]
[1770219095397,7.52433778,2178.0,2176.3,7.19522922]
[1770219095600,0.459,2178.1,2176.9,7.19522922]
[1770219096197,0.00482911,2178.0,2176.9,7.19522922]
[1770219096401,0.459,2178.1,2176.9,7.19522922]
[1770219096595,0.459,2178.1,2176.9,6.74522922]
[1770219096797,0.00482911,2178.1,2177.0,1.0581]
[1770219096998,7.98333778,2179.4,2177.8,1.05773]
[1770219097201,0.459,2179.4,2177.9,0.22993]
[1770219097503,0.459,2179.4,2177.2,1.28803]
[1770219097504,7.98333778,2179.4,2177.2,1.28803]
[1770219097698,7.98333778,2179.4,2177.2,0.23]
[1770219097895,7.98762214,2179.4,2177.6,1.28779]
[1770219098300,0.46328436,2179.4,2177.8,1.28765]
[1770219098502,0.46328436,2179.4,2177.9,7.19522922]
[1770219098706,0.46328436,2179.4,2178.1,7.42513922]
[1770219099401,1.05625,2180.9,2179.2,8.25228922]
[1770219099402,0.459,2180.6,2179.2,8.25228922]
[1770219099600,39.68793948,2181.8,2179.2,8.25228922]
[1770219099601,7.52433778,2181.3,2179.8,7.19522922]
[1770219100198,8.80997778,2181.3,2179.8,7.19522922]
[1770219100398,7.75764431,2181.3,2179.8,0.00580734]
[1770219100700,7.52806431,2181.3,2179.9,7.19522922]
[1770219101095,0.00372653,2181.3,2179.9,7.19522922]
[1770219101509,0.00372653,2181.3,2180.1,8.48149922]
[1770219101701,0.00372653,2181.3,2180.1,7.42491922]
[1770219102506,0.459,2181.7,2180.6,7.19522922]
[1770219102802,0.45,2182.4,2181.2,7.19522922]
[1770219102999,7.98333778,2183.0,2181.6,7.19522922]
[1770219103202,0.459,2183.0,2181.8,7.19522922]
[1770219103907,0.46254488,2183.0,2181.8,7.19872098]
[1770219104206,7.98688266,2183.0,2181.9,0.4542]
[1770219104700,7.98688266,2183.0,2181.8,0.00349176]
[1770219104901,8.57969778,2182.8,2181.0,7.19522922]
[1770219105208,7.52433778,2182.5,2180.6,7.65422922]
[1770219105405,7.52433778,2182.3,2180.6,7.65422922]
[1770219105601,1.05551,2182.4,2180.6,7.19522922]
[1770219105602,7.52433778,2182.1,2180.6,7.19522922]
[1770219105806,7.98333778,2182.0,2180.6,7.20048831]
[1770219106006,7.52433778,2181.8,2180.6,0.00525909]
[1770219107010,8.58014778,2181.8,2180.3,0.45864196]
[1770219107406,7.52433778,2181.8,2180.3,0.45864196]
[1770219107607,8.58015778,2181.8,2180.3,0.45864196]
[1770219107807,8.80967778,2181.8,2180.3,0.45864196]
[1770219108006,8.58039778,2181.3,2179.4,7.19522922]
[1770219108310,7.75391778,2181.3,2179.4,7.19522922]
[1770219108610,7.52433778,2181.1,2179.1,7.42502922]
[1770219108809,48.32433778,2181.0,2179.1,8.48213922]
[1770219109006,7.52433778,2180.9,2179.1,7.42502922]
[1770219109201,40.8,2181.0,2179.1,7.42502922]
[1770219109202,40.80492651,2181.0,2179.5,7.19522922]
[1770219109412,0.00492651,2181.0,2179.8,7.19522922]
[1770219110009,7.52926429,2181.0,2179.4,7.65422922]
[1770219110405,0.00492651,2181.0,2180.0,7.19522922]
[1770219110608,7.52433778,2181.8,2180.2,7.42490922]
[1770219111007,48.32433778,2181.8,2180.2,7.42490922]
[1770219111209,7.52433778,2181.7,2180.2,7.42490922]
[1770219111610,7.52902601,2181.7,2180.2,7.42490922]
[1770219111908,7.52902601,2181.7,2180.2,7.19522922]
[1770219114222,0.00468823,2181.7,2180.6,7.47503379]
[1770219114718,7.34900619,2181.7,2180.6,7.47503379]
[1770219114910,7.57385796,2181.6,2180.2,7.47503379]
[1770219115210,0.00468823,2181.7,2180.1,7.47503379]
[1770219115413,0.00468823,2181.7,2179.4,0.459]
[1770219115414,7.34900619,2181.7,2180.3,7.47503379]
[1770219115717,7.34900619,2181.7,2179.7,7.47503379]
[1770219115718,7.34431796,2181.2,2179.7,7.47503379]
[1770219116119,7.34431796,2181.6,2179.7,7.70477379]
[1770219116619,0.00468823,2181.7,2180.4,7.47503379]
[1770219116811,0.00468823,2181.7,2180.4,8.53149379]
[1770219117016,0.459,2182.0,2181.0,7.47503379]
[1770219117214,7.80331796,2182.0,2180.5,7.47503379]
[1770219117414,7.34431796,2181.8,2180.5,7.47503379]
[1770219117613,7.79431796,2182.4,2180.8,7.32949486]
[1770219118024,7.79788875,2182.4,2180.8,7.56364597]
[1770219118817,0.45357079,2182.4,2181.2,7.32949486]
[1770219119218,7.88073685,2182.4,2180.8,7.33402597]
[1770219119415,7.19770606,2182.2,2180.8,7.33402597]
[1770219119615,40.8,2182.3,2180.8,7.33402597]
[1770219119819,7.65127685,2182.4,2180.8,7.33402597]
[1770219120220,7.19770606,2181.9,2180.8,0.00453111]
[1770219120420,0.459,2181.9,2180.8,7.33402597]
[1770219121018,7.65670606,2181.9,2180.8,0.00453111]
[1770219121218,7.42723606,2181.8,2180.8,0.00453111]
[1770219121418,7.19770606,2181.6,2180.1,7.55919486]
[1770219121619,0.459,2181.9,2180.4,7.32949486]
[1770219121819,7.65670606,2181.9,2180.4,7.55915486]
[1770219122017,0.459,2181.9,2180.9,7.32949486]
[1770219122319,0.459,2181.9,2180.9,7.33532166]
[1770219123324,7.65670606,2181.9,2180.9,0.0058268]
[1770219124226,7.19770606,2181.4,2180.1,7.32949486]
[1770219124519,7.19770606,2181.2,2179.8,7.32949486]
[1770219124724,7.19770606,2181.2,2179.8,7.55922486]
[1770219124917,7.19770606,2181.2,2179.8,7.32949486]
[1770219125319,7.42736606,2180.5,2179.8,0.00326]
[1770219125623,0.459,2180.6,2179.2,7.32949486]
[1770219125823,0.459,2180.6,2179.2,7.55928486]
[1770219126324,0.19577783,2180.6,2179.8,7.32949486]
[1770219126520,7.19770606,2181.3,2179.8,7.32949486]
[1770219126724,7.42731606,2181.0,2179.4,7.32949486]
[1770219126924,7.19770606,2180.8,2179.4,7.32949486]
[1770219127125,7.19770606,2180.8,2179.4,7.33425039]
[1770219127326,7.20268529,2180.8,2179.4,7.33425039]
[1770219127522,7.20268529,2180.8,2180.2,7.32949486]
[1770219127523,0.00497923,2180.8,2180.2,7.32949486]
[1770219127829,0.459,2181.4,2180.2,7.32949486]
[1770219128128,7.19770606,2181.9,2180.5,7.32949486]
[1770219128332,7.19770606,2181.9,2180.7,7.32949486]
[1770219128628,7.20256591,2181.9,2180.7,7.32949486]
[1770219129330,0.00485985,2181.9,2180.7,7.32949486]
[1770219129825,7.20256591,2181.9,2180.7,7.32949486]
[1770219130125,7.20256591,2181.9,2180.5,7.32949486]
[1770219130424,3.08717257,2182.3,2181.3,7.32949486]
[1770219130425,0.459,2182.3,2181.3,7.32949486]
[1770219130625,7.65670606,2182.3,2181.0,7.32949486]
[1770219130834,7.65670606,2182.3,2180.8,7.32949486]
[1770219131131,7.19770606,2182.2,2180.8,10.05413499]
[1770219131332,0.00325241,2182.2,2181.4,7.32949486]
[1770219131524,7.19770606,2182.1,2180.6,10.05413499]
[1770219131726,7.19770606,2182.1,2180.6,7.32949486]
[1770219131927,7.19770606,2182.1,2180.8,7.33308853]
[1770219132128,0.00325241,2182.2,2181.2,7.32949486]
[1770219132927,7.19770606,2182.0,2180.8,0.00359367]
[1770219133228,7.42722606,2181.8,2180.8,0.00359367]
[1770219133931,7.20095847,2182.2,2180.8,7.33308853]
[1770219134336,7.19770606,2181.3,2180.8,4.20688467]
[1770219134527,7.19770606,2181.0,2179.8,2.72464013]
[1770219134728,7.19770606,2181.0,2179.7,2.72464013]
[1770219135032,7.19770606,2180.6,2179.2,3.18264013]
[1770219135234,7.19770606,2180.6,2179.3,2.72464013]
[1770219135436,7.20271158,2180.6,2179.4,4.58400001]
[1770219135930,7.19770606,2179.9,2178.9,2.72464013]
[1770219136130,40.8,2180.5,2178.9,2.72464013]
[1770219136336,0.00500552,2180.6,2179.3,4.58400001]
[1770219136525,7.43236158,2180.6,2179.1,2.72464013]
[1770219136833,7.19770606,2180.4,2179.0,2.72464013]
[1770219137127,40.8,2180.5,2179.0,2.72464013]
[1770219137128,40.8,2180.5,2179.3,4.58400001]
[1770219137433,0.00500552,2180.6,2179.5,7.32949486]
[1770219138034,7.20271158,2180.6,2179.2,2.72464013]
[1770219138234,7.43236158,2180.6,2179.2,2.72464013]
[1770219138434,7.19770606,2180.2,2179.0,0.00462055]
[1770219138830,7.19770606,2180.2,2179.0,11.91811542]
[1770219139032,47.99770606,2180.5,2179.3,4.58400001]
[1770219139230,47.99770606,2180.5,2179.2,7.32949486]
[1770219139430,7.19770606,2180.4,2179.0,7.33411541]
[1770219139733,7.19770606,2180.4,2179.1,11.91349487]
[1770219140130,7.19770606,2180.4,2179.1,7.32949486]
[1770219140526,7.19770606,2179.9,2179.0,0.00462055]
[1770219140731,0.22971,2180.0,2179.0,0.00462055]
[1770219140732,7.19770606,2179.7,2179.0,0.00462055]
[1770219141327,0.459,2179.8,2179.0,0.00462055]
[1770219141328,0.459,2179.8,2179.2,4.58400001]
[1770219141631,0.459,2179.8,2179.3,4.58400001]
[1770219141841,0.459,2179.8,2179.0,0.00462055]
[1770219141842,7.65670606,2179.8,2179.0,0.00462055]
[1770219142330,0.459,2179.8,2179.0,0.00462055]
[1770219142832,7.65670606,2179.8,2179.0,0.00462055]
[1770219143230,7.65670606,2179.8,2177.9,2.72464013]
[1770219143231,7.42747606,2179.5,2177.9,2.72464013]
[1770219143436,7.19770606,2179.0,2177.6,7.32949486]
[1770219143634,7.19770606,2178.8,2177.2,10.05413499]
[1770219143933,7.19770606,2178.8,2177.2,7.32949486]
[1770219144232,7.43107002,2178.8,2177.2,7.33496889]
[1770219144437,7.00579234,2178.3,2177.2,0.00547403]
[1770219144837,7.00579234,2178.7,2177.4,4.58400001]
[1770219145031,0.22986,2178.6,2177.3,7.39869404]
[1770219145236,7.00579234,2178.5,2177.2,0.00547403]
[1770219145535,7.00579234,2178.3,2177.2,0.00547403]
[1770219146135,7.00579234,2178.1,2177.2,0.00547403]
[1770219146435,0.00352396,2178.8,2177.2,0.00547403]
[1770219146436,7.00579234,2178.5,2177.5,4.58400001]
[1770219146638,0.00352396,2178.8,2177.8,4.58400001]
[1770219146833,7.0093163,2178.8,2177.7,7.39869404]
[1770219147034,7.0093163,2178.8,2177.8,4.58400001]
[1770219147529,7.0093163,2178.8,2177.7,7.39869404]
[1770219147736,7.0093163,2178.8,2177.2,0.00547403]
[1770219147737,7.23570234,2178.2,2177.2,0.00547403]
[1770219148438,7.00579234,2178.2,2177.2,0.00547403]
[1770219148636,7.00579234,2178.2,2177.6,4.58400001]
[1770219148838,7.00579234,2178.7,2177.6,4.58400001]
[1770219149037,7.00579234,2178.7,2177.3,7.39869404]
[1770219149239,7.00579234,2178.7,2177.7,4.58400001]
[1770219149437,7.00579234,2178.7,2177.6,4.58400001]
[1770219149739,7.00579234,2178.7,2178.0,4.58400001]
[1770219149939,7.00579234,2178.7,2177.3,7.62868404]
[1770219150135,7.00579234,2178.7,2177.4,11.98269405]
[1770219150338,7.00579234,2178.7,2177.5,4.58400001]
[1770219150534,7.00579234,2178.7,2177.6,4.58400001]
[1770219150740,7.00579234,2178.4,2177.2,0.00547403]
[1770219150938,7.23567234,2178.4,2177.2,0.00547403]
[1770219151139,7.23567234,2178.4,2177.3,4.58400001]
[1770219151637,7.23567234,2178.4,2177.6,4.58400001]
[1770219151638,7.00579234,2178.4,2177.6,4.58400001]
[1770219151839,7.00579234,2178.4,2177.2,0.00547403]
[1770219152039,7.00579234,2178.4,2177.4,4.58400001]
[1770219152340,7.00579234,2178.4,2177.2,7.40416807]
[1770219152541,7.00579234,2178.4,2177.6,4.58400001]
[1770219152836,7.00579234,2178.4,2177.2,7.40416807]
[1770219153040,7.00579234,2178.4,2175.6,1.05879]
[1770219153041,7.00579234,2177.8,2176.4,7.39869404]
[1770219153336,7.46479234,2177.8,2176.4,7.39869404]
[1770219153643,7.46479234,2177.8,2176.8,4.58400001]
[1770219154130,7.46479234,2177.8,2176.9,4.58400001]
[1770219154333,0.459,2177.8,2176.8,7.40228173]
[1770219154536,7.00579234,2178.2,2176.9,7.62872404]
[1770219155039,7.00579234,2178.2,2177.2,11.98269405]
[1770219155239,7.00579234,2178.2,2177.3,4.58400001]
[1770219155439,7.00579234,2178.2,2177.2,7.39869404]
[1770219155440,7.00579234,2178.2,2177.5,4.58400001]
[1770219155641,7.00579234,2178.2,2177.4,4.58400001]
[1770219155939,7.00579234,2178.2,2177.2,4.58400001]
[1770219156235,7.00579234,2178.2,2177.0,7.39869404]
[1770219156438,0.00352396,2178.8,2177.5,7.39869404]
[1770219156736,0.459,2179.3,2178.3,7.62858404]
[1770219156939,0.459,2179.3,2178.4,7.62857404]
[1770219157136,7.46479234,2179.3,2178.0,4.58400001]
[1770219157338,7.46479234,2179.3,2177.9,0.22993]
[1770219157638,7.47047933,2179.3,2178.1,4.58400001]
[1770219157843,7.47047933,2179.3,2178.0,11.98269405]
[1770219158038,7.47047933,2179.3,2178.1,4.58400001]
[1770219158240,7.47047933,2179.3,2178.3,4.58400001]
[1770219158632,7.47047933,2179.3,2178.4,4.58400001]
[1770219158941,7.70025933,2179.3,2177.9,0.00383297]
[1770219159134,7.00579234,2179.1,2177.9,0.00383297]
[1770219159442,7.00579234,2179.1,2178.0,7.39869404]
[1770219159737,7.00579234,2179.1,2178.2,4.58400001]
[1770219160038,0.46468699,2179.3,2178.4,4.58400001]
[1770219160337,7.47047933,2179.3,2178.3,11.98269405]
[1770219160639,7.47047933,2179.3,2178.5,4.58400001]
[1770219160836,7.47047933,2179.3,2177.9,7.40252701]
[1770219161034,7.70026933,2179.3,2177.9,0.00383297]
[1770219161236,7.00579234,2179.1,2177.9,0.00383297]
[1770219161641,0.46468699,2179.3,2177.9,0.00383297]
[1770219161642,0.00568699,2179.3,2178.6,4.58400001]
[1770219161940,7.01147933,2179.3,2178.2,11.98269405]
[1770219162141,7.01147933,2179.3,2178.3,4.58400001]
[1770219162338,7.01147933,2179.3,2177.9,7.63245701]
[1770219162546,7.01147933,2179.3,2178.2,4.58400001]
[1770219163040,7.00579234,2179.1,2177.9,0.00383297]
[1770219163338,0.00568699,2179.3,2177.9,0.00383297]
[1770219163339,7.00579234,2178.8,2177.9,0.00383297]
[1770219163540,7.23563234,2178.8,2177.9,0.00383297]
[1770219163740,7.00579234,2177.7,2176.4,2.72464013]
[1770219163942,7.00579234,2177.6,2175.9,7.62883404]
[1770219164243,7.23575234,2177.6,2176.0,4.58400001]
[1770219164443,7.00579234,2177.4,2175.7,3.93933329]
[1770219164645,7.00579234,2176.9,2175.7,0.00371575]
[1770219164838,7.00579234,2176.7,2175.7,0.00371575]
[1770219165041,7.23585234,2176.7,2175.7,0.00371575]
[1770219165641,7.00579234,2176.3,2174.8,7.39869404]
[1770219165941,7.00579234,2176.3,2175.0,7.39869404]
[1770219166147,8.06428234,2176.3,2174.4,0.22196456]
[1770219166348,7.00579234,2176.0,2174.4,7.6206586]
[1770219166641,7.00579234,2175.8,2174.4,0.22680468]
[1770219166843,7.01109751,2175.8,2174.4,0.22680468]
[1770219167048,0.00530517,2175.8,2174.8,7.39869404]
[1770219167249,7.01109751,2175.8,2174.4,7.85579872]
[1770219167653,7.00579234,2175.7,2174.4,7.62549872]
[1770219168047,7.00579234,2175.7,2174.6,4.58400001]
[1770219168347,7.00579234,2175.7,2174.4,0.22680468]
[1770219168742,7.00579234,2175.5,2174.4,0.22680468]
[1770219169050,0.00530517,2175.8,2175.1,4.58400001]
[1770219169251,0.00530517,2175.8,2175.0,4.58400001]
[1770219169452,7.01109751,2175.8,2174.5,7.39869404]
[1770219169652,7.01109751,2175.8,2174.4,0.22680468]
[1770219169950,7.24124751,2175.8,2174.4,4.81080469]
[1770219170245,7.00579234,2175.6,2174.4,0.22680468]
[1770219170844,7.00579234,2175.6,2174.9,4.58400001]
[1770219171244,0.00530517,2175.8,2174.5,7.39869404]
[1770219171451,0.00530517,2175.8,2174.8,7.39869404]
[1770219171645,7.01109751,2175.8,2174.4,7.85579872]
[1770219171845,7.01109751,2175.8,2174.4,7.62549872]
[1770219172050,7.00579234,2175.3,2174.4,0.22680468]
[1770219172253,7.00579234,2175.1,2174.4,0.22680468]
[1770219172652,7.00579234,2175.1,2174.5,4.58400001]
[1770219172855,7.00579234,2175.1,2174.4,0.22680468]
[1770219173056,7.00579234,2175.1,2173.1,7.39869404]
[1770219173258,7.00579234,2175.1,2173.5,11.98269405]
[1770219173456,7.00579234,2175.1,2173.6,7.39869404]
[1770219173652,7.00579234,2175.1,2173.7,4.58400001]
[1770219173950,7.23602234,2175.1,2173.7,0.00197045]
[1770219174551,7.23602234,2175.1,2173.9,4.58400001]
[1770219174857,7.00579234,2175.1,2174.1,4.58400001]
[1770219175056,7.00579234,2175.1,2174.3,4.58400001]
[1770219175452,7.00579234,2175.1,2173.9,7.13381365]
[1770219175650,7.00579234,2175.1,2174.0,4.58400001]
[1770219175949,7.00579234,2175.1,2173.8,4.58400001]
[1770219176150,7.00579234,2175.1,2173.7,0.00197045]
[1770219176748,7.23602234,2175.1,2173.7,0.00197045]
[1770219177454,7.70405341,2174.7,2173.7,0.00197045]
[1770219177652,7.47378341,2174.5,2172.6,7.67402657]
[1770219177956,7.47378341,2174.5,2172.9,4.58400001]
[1770219178156,7.47378341,2174.5,2173.1,4.58400001]
[1770219178457,7.47378341,2174.5,2172.8,7.67402657]
[1770219178650,7.47378341,2174.5,2173.4,4.58400001]
[1770219178951,7.47378341,2174.5,2173.2,7.67402657]
[1770219179158,7.47378341,2174.5,2173.7,4.58400001]
[1770219179551,7.47378341,2174.5,2173.2,7.67402657]
[1770219180260,7.47378341,2174.5,2172.8,7.67402657]
[1770219180859,7.56781338,2174.1,2172.4,7.67402657]
[1770219181060,7.56781338,2173.9,2172.4,7.67402657]
[1770219181253,7.56781338,2173.9,2172.6,7.67402657]
[1770219181460,0.46,2174.0,2172.9,7.67402657]
[1770219181759,7.56781338,2174.6,2172.9,7.67402657]
[1770219181951,7.79809338,2174.6,2172.9,7.67402657]
[1770219182151,7.56781338,2174.3,2172.9,7.67402657]
[1770219182657,7.80370285,2174.3,2172.9,7.67769935]
[1770219182955,7.56781338,2173.7,2172.1,0.69053]
[1770219183152,1.06503947,2174.3,2172.6,7.90451657]
[1770219183153,7.56781338,2174.0,2172.6,7.90451657]
[1770219183352,7.56781338,2174.0,2172.8,7.90448657]
[1770219183553,0.00557947,2174.3,2172.8,7.90448657]
[1770219183554,7.56781338,2174.2,2172.8,7.67402657]
[1770219183754,7.79813338,2174.2,2172.8,7.67402657]
[1770219184259,7.56781338,2174.2,2172.8,7.67402657]
[1770219184460,7.56781338,2174.2,2172.8,7.90449657]
[1770219184658,7.56781338,2174.2,2173.0,7.67402657]
[1770219184855,0.00557947,2174.3,2173.4,7.67402657]
[1770219185060,0.00557947,2174.3,2172.9,7.90447657]
[1770219185462,0.00557947,2174.3,2173.1,7.67402657]
[1770219185757,0.46,2174.8,2173.8,7.67402657]
[1770219185960,0.46,2174.8,2174.0,7.67402657]
[1770219186157,0.46,2174.8,2174.2,7.90433657]
[1770219186362,3.222,2175.8,2173.6,7.67402657]
[1770219186363,7.56781338,2175.3,2173.6,7.67402657]
[1770219186562,7.56781338,2175.3,2173.8,7.67402657]
[1770219186763,7.56781338,2175.2,2173.8,7.67928787]
[1770219187156,7.56781338,2175.2,2173.8,0.0052613]
[1770219187460,7.56781338,2175.2,2173.4,7.67402657]
[1770219187461,7.56781338,2174.7,2173.2,0.69043]
[1770219187756,40.80580771,2175.3,2173.2,0.69043]
[1770219187757,7.56781338,2174.5,2173.2,8.36445657]
[1770219188460,7.56781338,2174.1,2172.6,7.67402657]
[1770219188963,7.79814338,2174.1,2172.5,0.2305]
[1770219189159,7.79814338,2174.1,2172.5,7.90452657]
[1770219189358,7.56781338,2174.1,2172.6,7.67402657]
[1770219189561,7.56781338,2174.1,2172.4,7.67402657]
[1770219189861,7.79814338,2174.1,2172.4,7.67402657]
[1770219190062,7.56781338,2173.9,2172.4,7.67402657]
[1770219190262,7.56781338,2173.9,2172.2,0.69053]
[1770219190461,7.79820338,2173.6,2172.2,0.46]
[1770219190667,7.79820338,2173.6,2171.7,7.90460657]
[1770219190668,7.56781338,2173.4,2171.7,7.90460657]
[1770219191166,7.56781338,2173.4,2171.9,7.67402657]
[1770219191365,7.56781338,2173.4,2171.8,0.23058]
[1770219191763,7.56781338,2173.4,2171.5,7.67402657]
[1770219191968,0.6904,2173.5,2171.5,7.67402657]
[1770219191969,7.56781338,2173.2,2171.5,7.67402657]
[1770219192167,7.56781338,2173.2,2171.5,7.90462657]
[1770219192467,7.56781338,2173.0,2171.5,7.90462657]
[1770219192866,7.56781338,2172.9,2171.5,7.90462657]
[1770219193464,7.56781338,2172.9,2171.5,7.67402657]
[1770219193665,7.56781338,2172.5,2171.1,7.67402657]
[1770219193963,7.56781338,2172.3,2171.1,0.00556933]
[1770219194164,0.23062,2171.4,2169.6,0.23081]
[1770219194370,8.25844338,2171.3,2169.4,7.89599113]
[1770219194566,1.06112,2170.9,2169.4,0.22196456]
[1770219194864,7.56781338,2170.6,2169.4,0.21797362]
[1770219195064,7.79854338,2170.4,2168.6,0.46]
[1770219195267,7.79856338,2170.2,2168.3,8.13520673]
[1770219195467,7.56781338,2170.2,2168.6,7.67402657]
[1770219195662,7.56781338,2170.2,2168.9,7.90490657]
[1770219196175,7.5729519,2170.6,2169.3,7.67402657]
[1770219196569,7.5729519,2170.6,2168.9,7.67402657]
[1770219196771,7.79854338,2170.4,2168.7,0.4654]
[1770219197071,7.79856338,2170.2,2168.7,0.4654]
[1770219197272,7.79856338,2170.2,2168.7,7.67942657]
[1770219197464,7.56781338,2170.2,2168.7,7.67942657]
[1770219197668,7.56781338,2170.2,2168.7,7.91032657]
[1770219198371,0.00513852,2170.6,2169.5,7.67402657]
[1770219198772,7.5729519,2170.6,2169.1,7.67402657]
[1770219199373,7.5729519,2170.6,2169.3,7.67402657]
[1770219199875,8.2636619,2170.6,2168.8,7.67402657]
[1770219200169,7.56781338,2170.3,2168.7,0.0054]
[1770219200370,7.56781338,2170.1,2168.7,0.0054]
[1770219200873,7.56781338,2169.9,2168.7,0.0054]
[1770219201267,7.56781338,2169.9,2168.7,7.67942657]
[1770219201474,7.56781338,2170.5,2168.8,7.67402657]
[1770219201668,7.56781338,2170.5,2169.0,7.67402657]
[1770219201974,7.56781338,2170.3,2169.0,7.67402657]
[1770219202382,0.46513852,2170.6,2169.3,7.67402657]
[1770219202576,0.46513852,2170.6,2169.4,7.90485657]
[1770219202771,8.0329519,2170.6,2169.0,7.67402657]
[1770219203180,8.0329519,2170.6,2169.1,7.90488657]
[1770219203575,8.0329519,2170.6,2169.2,7.05456676]
[1770219203781,8.0329519,2170.6,2168.7,1.06756]
[1770219203782,0.46513852,2170.6,2169.4,7.05456676]
[1770219203982,0.46513852,2170.6,2169.6,7.05456676]
[1770219204386,0.46513852,2170.6,2169.5,0.23082]
[1770219204579,7.75200426,2170.6,2169.2,7.05456676]
[1770219204981,7.98270426,2170.6,2168.8,7.05456676]
[1770219205177,7.28686574,2170.4,2168.7,0.2363]
[1770219205383,7.51761574,2170.2,2168.7,0.0054]
[1770219206282,7.28686574,2170.0,2168.7,0.0054]
[1770219206679,7.28686574,2169.8,2168.7,0.0054]
[1770219206985,7.28686574,2169.6,2168.7,0.0054]
[1770219208880,0.461,2169.7,2168.7,7.05996676]
[1770219209082,7.28686574,2170.5,2169.2,7.28541676]
[1770219209482,7.28686574,2170.5,2169.3,7.28540676]
[1770219209682,7.28686574,2170.5,2168.9,7.05456676]
[1770219210094,7.28686574,2170.5,2169.2,7.28541676]
[1770219210385,7.28686574,2171.3,2169.6,7.05456676]
[1770219210588,7.28686574,2171.1,2169.6,7.05456676]
[1770219210787,7.28686574,2170.9,2169.2,7.05456676]
[1770219210983,7.51753574,2170.9,2169.7,0.0054]
[1770219211383,7.52344102,2170.9,2169.7,0.0102031]
[1770219211691,7.28686574,2170.7,2169.7,0.0102031]
[1770219211993,7.74786574,2170.7,2169.7,0.0102031]
[1770219212186,7.97856574,2170.7,2169.7,0.0102031]
[1770219212692,7.28686574,2170.5,2169.7,0.0102031]
[1770219212990,7.28686574,2170.1,2168.6,0.461]
[1770219213187,7.51762574,2170.1,2168.6,0.461]
[1770219214385,7.51762574,2170.1,2168.6,7.51556676]
[1770219214685,7.51764574,2169.9,2168.2,7.05456676]
[1770219214882,7.28686574,2169.7,2168.2,7.28552676]
[1770219215084,7.28686574,2169.5,2167.8,7.05456676]
[1770219215292,7.28686574,2169.5,2168.3,0.45604165]
[1770219215484,1.06172,2169.7,2168.3,0.45604165]
[1770219215485,7.28686574,2169.2,2168.3,0.45604165]
[1770219215688,7.28686574,2169.2,2167.7,0.69201]
[1770219215689,7.29221221,2169.2,2167.7,0.69201]
[1770219215889,7.28686574,2169.0,2167.7,0.461]
[1770219216197,7.28686574,2168.8,2167.2,0.23106]
[1770219216690,0.69189,2168.9,2166.8,0.461]
[1770219216691,7.28686574,2168.6,2166.8,0.461]
[1770219216890,7.51778574,2168.6,2166.9,0.2311]
[1770219217193,7.51778574,2168.6,2166.9,7.28566676]
[1770219217388,7.51778574,2168.6,2166.9,7.05456676]
[1770219217591,7.28686574,2168.2,2166.6,0.23113]
[1770219217895,7.28686574,2168.2,2166.6,7.28569676]
[1770219218093,7.51782574,2168.2,2166.2,7.05456676]
[1770219218490,7.51782574,2168.2,2166.3,0.23116]
[1770219218688,7.28686574,2167.3,2165.4,7.05456676]
[1770219218890,7.28686574,2166.8,2165.6,0.00526402]
[1770219219296,7.28686574,2166.5,2164.6,7.05456676]
[1770219219498,3.36849951,2166.4,2164.3,1.06431]
[1770219219792,7.28686574,2165.8,2164.0,0.2314]
[1770219219984,7.28686574,2165.8,2163.9,0.461]
[1770219220190,7.28686574,2165.8,2164.2,8.11895676]
[1770219220495,0.461,2166.3,2163.6,0.23145]
[1770219220496,7.28686574,2165.4,2163.6,0.23145]
[1770219220694,7.28686574,2165.2,2163.5,1.06474]
[1770219220897,7.28686574,2165.2,2163.8,1.296]
[1770219221097,0.461,2165.3,2164.3,7.05456676]
[1770219221291,0.461,2165.3,2164.2,0.23138]
[1770219221292,7.74786574,2165.3,2164.2,0.23138]
[1770219221693,0.00342478,2165.4,2164.6,8.11874676]
[1770219221892,7.28686574,2166.1,2164.6,1.06768151]
[1770219222086,7.28686574,2166.1,2164.9,7.05456676]
[1770219222397,7.28686574,2165.6,2164.6,0.00350151]
[1770219222596,7.28686574,2165.4,2164.6,0.00350151]
[1770219222793,7.29224647,2165.4,2164.6,0.00350151]
[1770219222993,0.00538073,2165.4,2164.6,0.00350151]
[1770219223496,0.00538073,2165.4,2164.6,7.05806827]
[1770219223896,7.28686574,2166.7,2164.8,7.05456676]
[1770219224490,7.51798574,2166.7,2164.8,7.05456676]
[1770219225000,7.29279722,2166.7,2165.1,7.28585676]
[1770219225192,7.29279722,2166.7,2165.1,7.05456676]
[1770219225691,7.29279722,2166.7,2165.2,7.28584676]
[1770219226296,0.00593148,2166.7,2165.5,8.11830676]
[1770219226492,7.28686574,2167.1,2165.8,7.28577676]
[1770219226694,7.28686574,2167.1,2165.9,0.2312]
[1770219226898,0.461,2167.5,2165.9,7.28576676]
[1770219226899,7.74786574,2167.5,2165.9,7.28576676]
[1770219227103,7.74786574,2167.5,2165.6,7.25156676]
[1770219227299,7.74786574,2167.5,2166.0,7.28575676]
[1770219227597,7.75337984,2167.5,2166.0,7.28575676]
[1770219228594,7.75337984,2167.5,2165.6,7.25156676]
[1770219228796,7.29237984,2167.5,2165.6,7.25156676]
[1770219228996,7.29237984,2167.5,2166.0,7.05456676]
[1770219229598,7.29237984,2167.5,2166.2,7.05456676]
[1770219229798,7.29237984,2167.5,2166.2,7.05813028]
[1770219230198,7.29237984,2167.5,2166.2,0.00356352]
[1770219230398,7.28686574,2167.3,2166.2,0.00356352]
[1770219230598,7.28686574,2167.1,2166.2,0.00356352]
[1770219231800,7.28686574,2166.6,2165.6,0.197]
[1770219231998,7.51797574,2166.6,2164.6,7.05456676]
[1770219232199,7.28686574,2166.6,2165.1,7.28583676]
[1770219232403,7.28686574,2166.6,2165.2,7.28581676]
[1770219233008,7.28686574,2166.6,2165.2,7.29069166]
[1770219233205,7.28686574,2167.0,2165.5,7.28578676]
[1770219233500,7.28686574,2167.0,2165.6,7.78266676]
[1770219234201,0.461,2167.2,2165.9,7.42487415]